bitfinex-derivatives/quotes_BTCF0:USTF0_20240925
["timestamp","ask_amount","ask_price","bid_price","bid_amount"]
[1727246960441,0.06211524,63961.0,63960.0,0.24501837]
[1727246960629,0.06211524,63962.0,63960.0,0.49837446]
[1727246960835,0.06211524,63962.0,63961.0,0.06354481]
[1727246961036,0.198166,63964.0,63961.0,0.02444031]
[1727246961334,0.198166,63964.0,63962.0,0.02444031]
[1727246961526,0.198166,63964.0,63963.0,0.02444031]
[1727246961733,0.198166,63964.0,63963.0,0.19693374]
[1727246962039,0.078166,63964.0,63963.0,0.02444031]
[1727246962243,0.078166,63964.0,63963.0,0.19693374]
[1727246962244,0.079166,63964.0,63963.0,0.19693374]
[1727246962635,0.09428991,63964.0,63963.0,0.19993374]
[1727246964037,0.09328991,63964.0,63963.0,0.19993374]
[1727246964233,0.09328991,63964.0,63963.0,0.20393413]
[1727246967369,0.15537674,63964.0,63963.0,0.29949343]
[1727246967540,0.09328991,63964.0,63963.0,0.46564109]
[1727246967768,0.0306,63968.0,63965.0,0.078163]
[1727246967769,0.06208683,63966.0,63965.0,0.078163]
[1727246967934,0.06208683,63967.0,63966.0,0.078162]
[1727246968240,0.07816,63968.0,63966.0,0.31351743]
[1727246968446,0.09297463,63968.0,63967.0,0.08798067]
[1727246968645,0.09297463,63968.0,63967.0,0.26718558]
[1727246969237,0.09297463,63968.0,63967.0,0.34534658]
[1727246970436,0.01481463,63968.0,63967.0,0.34534658]
[1727246970642,0.06208683,63970.0,63969.0,0.078158]
[1727246970939,0.07722288,63970.0,63969.0,0.429555]
[1727246971140,0.07722288,63970.0,63969.0,0.45399202]
[1727246971341,0.07722288,63970.0,63969.0,0.42955451]
[1727246971837,0.01713605,63970.0,63969.0,0.42955451]
[1727246972041,0.02013605,63970.0,63969.0,0.42955451]
[1727246972245,0.02013605,63970.0,63969.0,0.45399145]
[1727246972638,0.08222288,63970.0,63969.0,0.50085027]
[1727246974263,0.08222288,63970.0,63969.0,0.41287708]
[1727246974551,0.08222288,63970.0,63969.0,0.50085014]
[1727246976042,0.02013605,63970.0,63969.0,0.45399132]
[1727246976442,0.02013605,63970.0,63969.0,0.50085014]
[1727246977350,0.02013605,63970.0,63969.0,0.45399132]
[1727246977652,0.02013605,63970.0,63969.0,0.45399042]
[1727246977972,0.02013605,63970.0,63969.0,0.41489168]
[1727246978150,0.02013605,63970.0,63969.0,0.45399026]
[1727246979056,0.02013605,63970.0,63969.0,0.33399026]
[1727246979350,0.02013605,63970.0,63969.0,0.45399026]
[1727246980955,0.02013605,63970.0,63969.0,0.45399078]
[1727246984261,0.02013605,63970.0,63969.0,0.41489188]
[1727246984464,0.02013605,63970.0,63969.0,0.45399078]
[1727246984855,0.02013605,63970.0,63969.0,0.5008496]
[1727246986061,0.02013605,63970.0,63969.0,0.50084958]
[1727246987392,0.02013605,63970.0,63969.0,0.45399076]
[1727246987558,0.02013605,63970.0,63969.0,0.42955392]
[1727246987757,0.02013605,63970.0,63969.0,0.45399071]
[1727246987963,0.02013605,63970.0,63969.0,0.36601826]
[1727246988161,0.02013605,63970.0,63969.0,0.45399056]
[1727246989254,0.005,63970.0,63969.0,0.45399056]
[1727246989462,0.005,63970.0,63969.0,0.57124528]
[1727246990762,0.005,63970.0,63969.0,0.50770583]
[1727246990960,0.005,63970.0,63969.0,0.5712354]
[1727246991167,0.005,63970.0,63969.0,0.4930774]
[1727246992478,0.05159939,63970.0,63969.0,0.45398268]
[1727246992769,0.005,63970.0,63969.0,0.33398268]
[1727246993166,0.0202533,63970.0,63969.0,0.33398268]
[1727246995269,0.08234013,63970.0,63969.0,0.39641733]
[1727246995669,0.0202533,63970.0,63969.0,0.39641733]
[1727246995875,0.0202533,63970.0,63969.0,0.45398268]
[1727246996266,0.08234013,63970.0,63969.0,0.45398268]
[1727246997371,0.0202533,63970.0,63969.0,0.45398268]
[1727246997604,0.0202533,63970.0,63969.0,0.39045271]
[1727246997873,0.0202533,63970.0,63969.0,0.45398801]
[1727247000080,0.005,63970.0,63969.0,0.45398801]
[1727247000278,0.005,63970.0,63969.0,0.51642266]
[1727247000575,0.005,63970.0,63969.0,0.49308086]
[1727247001081,0.05163647,63970.0,63969.0,0.49308086]
[1727247001572,0.005,63970.0,63969.0,0.49308086]
[1727247001770,0.05163647,63970.0,63969.0,0.49308086]
[1727247001967,0.05163647,63970.0,63969.0,0.37308086]
[1727247001968,0.005,63970.0,63969.0,0.37308086]
[1727247002273,0.005,63970.0,63969.0,0.49308086]
[1727247004369,0.005,63970.0,63969.0,0.85388086]
[1727247006286,0.005,63970.0,63969.0,0.79034956]
[1727247006474,0.005,63970.0,63969.0,0.85387978]
[1727247006698,0.005,63970.0,63969.0,0.76591384]
[1727247006980,0.005,63970.0,63969.0,0.85387888]
[1727247008282,0.005,63970.0,63969.0,0.85387891]
[1727247009269,0.05162024,63970.0,63969.0,0.49307891]
[1727247009472,0.05162024,63970.0,63969.0,0.85387891]
[1727247010487,0.05162024,63970.0,63969.0,0.49307891]
[1727247010677,0.05162024,63970.0,63969.0,0.85387891]
[1727247011182,0.05162292,63970.0,63969.0,0.93203691]
[1727247011381,0.05162292,63970.0,63969.0,0.85387891]
[1727247012183,0.005,63970.0,63969.0,0.85387891]
[1727247012373,0.005,63970.0,63969.0,0.93203691]
[1727247012912,0.005,63970.0,63969.0,0.8685066]
[1727247013183,0.005,63970.0,63969.0,0.93203696]
[1727247013381,0.005,63970.0,63969.0,1.01009449]
[1727247013980,0.005,63970.0,63969.0,0.93203696]
[1727247016319,0.005,63970.0,63969.0,0.94656414]
[1727247016475,0.005,63970.0,63969.0,0.93203439]
[1727247016881,0.005,63970.0,63969.0,0.83921455]
[1727247017177,0.005,63970.0,63969.0,0.93193135]
[1727247017774,0.005,63970.0,63969.0,0.85387382]
[1727247018382,0.05162292,63970.0,63969.0,0.85387382]
[1727247019786,0.005,63970.0,63969.0,0.85387382]
[1727247020194,0.005,63970.0,63969.0,0.853876]
[1727247020986,0.005,63970.0,63969.0,0.72681826]
[1727247021885,0.005,63970.0,63969.0,0.82944358]
[1727247022082,0.005,63970.0,63969.0,0.85387818]
[1727247023083,0.005,63970.0,63969.0,0.93193571]
[1727247023386,0.05162292,63970.0,63969.0,0.93203618]
[1727247024294,0.05162292,63970.0,63969.0,0.93203172]
[1727247024595,0.05162292,63970.0,63969.0,0.85387372]
[1727247025191,0.05162292,63970.0,63969.0,0.93203172]
[1727247026278,0.05162292,63970.0,63969.0,1.01008925]
[1727247027294,0.005,63970.0,63969.0,1.01008925]
[1727247027497,0.005,63970.0,63969.0,1.01675967]
[1727247029599,0.005,63970.0,63969.0,1.06562716]
[1727247030721,0.005,63970.0,63969.0,1.00209943]
[1727247031087,0.005,63970.0,63969.0,1.06562716]
[1727247031288,0.005,63970.0,63969.0,0.98746916]
[1727247031492,0.005,63970.0,63969.0,1.06562716]
[1727247031690,0.05163406,63970.0,63969.0,0.98746916]
[1727247031894,0.05163406,63970.0,63969.0,1.01675967]
[1727247033101,0.05163406,63970.0,63969.0,0.93860167]
[1727247033306,0.005,63970.0,63969.0,0.93860167]
[1727247034142,0.005,63970.0,63969.0,0.81154621]
[1727247034310,0.005,63970.0,63969.0,0.93860167]
[1727247036312,0.05163799,63970.0,63969.0,0.93860167]
[1727247036620,0.005,63970.0,63969.0,0.93860167]
[1727247036917,0.05163809,63970.0,63969.0,0.98746891]
[1727247038020,0.05163809,63970.0,63969.0,0.87507358]
[1727247038317,0.05163809,63970.0,63969.0,0.98746816]
[1727247039517,0.005,63970.0,63969.0,0.98746816]
[1727247040720,0.04663809,63973.0,63969.0,0.98746816]
[1727247040942,0.04663809,63973.0,63972.0,0.1981498]
[1727247041112,0.04663809,63973.0,63972.0,0.40993249]
[1727247041418,0.04663809,63973.0,63972.0,0.59014985]
[1727247042011,0.04663809,63973.0,63972.0,0.74645985]
[1727247042523,0.06217964,63976.0,63975.0,0.078151]
[1727247042707,0.06217964,63976.0,63975.0,0.68600574]
[1727247042910,0.06217964,63976.0,63975.0,0.85836892]
[1727247044424,0.07917964,63976.0,63975.0,0.86036892]
[1727247047615,0.07917964,63976.0,63975.0,0.8603688]
[1727247048022,0.07917964,63976.0,63975.0,0.79684143]
[1727247048228,0.07917964,63976.0,63975.0,0.86036868]
[1727247048923,0.07917964,63976.0,63975.0,0.49956868]
[1727247049118,0.07917964,63976.0,63975.0,0.86036868]
[1727247051225,0.07917964,63976.0,63975.0,0.98737898]
[1727247051226,0.017,63976.0,63975.0,0.98737898]
[1727247051529,0.0036,63979.0,63978.0,0.078147]
[1727247051728,0.06217964,63982.0,63978.0,0.32519567]
[1727247051927,0.06217964,63982.0,63981.0,0.4808]
[1727247052117,0.06217964,63982.0,63981.0,0.60785008]
[1727247052323,0.06217964,63983.0,63981.0,0.77855728]
[1727247052524,0.0331,63984.0,63983.0,0.078141]
[1727247052720,0.11124,63984.0,63983.0,0.12705008]
[1727247052916,0.23124,63984.0,63983.0,0.26440622]
[1727247053121,0.23124,63984.0,63983.0,0.31128496]
[1727247053334,0.23124,63984.0,63983.0,0.26440622]
[1727247053822,0.24224,63984.0,63983.0,0.31228496]
[1727247054327,0.31988405,63984.0,63983.0,0.26540622]
[1727247054553,0.31988405,63984.0,63983.0,0.17844983]
[1727247054718,0.34296426,63984.0,63983.0,0.24197537]
[1727247054918,0.34296426,63984.0,63983.0,0.26640827]
[1727247058059,0.34296426,63984.0,63983.0,0.20288273]
[1727247058331,0.34296426,63984.0,63983.0,0.24197592]
[1727247058563,0.34296426,63984.0,63983.0,0.17844983]
[1727247058744,0.34296426,63984.0,63983.0,0.24197591]
[1727247058935,0.34296426,63984.0,63983.0,0.26640902]
[1727247062630,0.34296426,63984.0,63983.0,0.31328776]
[1727247067180,0.34296426,63984.0,63983.0,0.26442154]
[1727247067333,0.34296426,63984.0,63983.0,0.24976167]
[1727247067558,0.34296426,63984.0,63983.0,0.31328774]
[1727247067847,0.26532021,63984.0,63983.0,0.266409]
[1727247069338,0.34300076,63984.0,63983.0,0.08995917]
[1727247069848,0.26532021,63984.0,63983.0,0.08995917]
[1727247070550,0.26532021,63984.0,63983.0,0.002]
[1727247070741,0.26532021,63984.0,63983.0,0.06552609]
[1727247071048,0.2906549,63984.0,63983.0,0.0899592]
[1727247074250,0.2906549,63984.0,63983.0,0.02643311]
[1727247074446,0.2906549,63984.0,63983.0,0.0899592]
[1727247077461,0.2906549,63984.0,63983.0,0.002]
[1727247077663,0.2906549,63984.0,63983.0,0.0264331]
[1727247077962,0.2906549,63984.0,63983.0,0.08995917]
[1727247078245,0.078144,63981.0,63976.0,0.04687874]
[1727247078550,0.19769284,63977.0,63976.0,0.21679723]
[1727247078750,0.12,63977.0,63976.0,0.23345193]
[1727247078939,0.14533762,63977.0,63976.0,0.23345193]
[1727247079136,0.10348662,63977.0,63976.0,0.23345193]
[1727247079341,0.1558237,63977.0,63976.0,0.23445193]
[1727247079544,0.1558237,63977.0,63976.0,0.23545193]
[1727247079948,0.1558237,63977.0,63976.0,0.17191849]
[1727247079949,0.1598237,63977.0,63976.0,0.17191849]
[1727247080152,0.1598237,63977.0,63976.0,0.23545199]
[1727247081454,0.082149,63977.0,63976.0,0.23545199]
[1727247081751,0.091149,63977.0,63976.0,0.23545199]
[1727247082343,0.091149,63977.0,63976.0,0.17191849]
[1727247082751,0.10609593,63977.0,63976.0,0.17191849]
[1727247083545,0.10609593,63977.0,63976.0,0.23545199]
[1727247084151,0.10609593,63977.0,63976.0,0.17191849]
[1727247086159,0.10609593,63977.0,63976.0,0.23545199]
[1727247086363,0.10609593,63977.0,63976.0,0.31360199]
[1727247086582,0.07509134,63977.0,63976.0,0.29694723]
[1727247086759,0.013,63977.0,63976.0,0.31359668]
[1727247087955,0.013,63977.0,63976.0,0.35269044]
[1727247089970,0.013,63977.0,63976.0,0.25006849]
[1727247090159,0.013,63977.0,63976.0,0.31359539]
[1727247090456,0.013,63977.0,63976.0,0.37712227]
[1727247090652,0.05957421,63977.0,63976.0,0.37712227]
[1727247091055,0.05957421,63977.0,63976.0,0.37712222]
[1727247091255,0.013,63977.0,63976.0,0.37712222]
[1727247092966,0.05957469,63977.0,63976.0,0.37712222]
[1727247093166,0.013,63977.0,63976.0,0.37712222]
[1727247093366,0.013,63977.0,63976.0,0.37712203]
[1727247094359,0.05957469,63977.0,63976.0,0.37712203]
[1727247094960,0.05957469,63977.0,63976.0,0.37712197]
[1727247095668,0.013,63977.0,63976.0,0.37712197]
[1727247096454,0.013,63977.0,63976.0,0.3135952]
[1727247096662,0.013,63977.0,63976.0,0.37712214]
[1727247099671,0.211149,63977.0,63976.0,0.37712214]
[1727247099870,0.211149,63977.0,63976.0,0.25006849]
[1727247100062,0.211149,63977.0,63976.0,0.33802928]
[1727247100374,0.211149,63977.0,63976.0,0.31360054]
[1727247100671,0.211149,63977.0,63976.0,0.33803594]
[1727247101577,0.211149,63977.0,63976.0,0.27450389]
[1727247101877,0.211149,63977.0,63976.0,0.31360149]
[1727247102060,0.211149,63977.0,63976.0,0.33803725]
[1727247103069,0.211149,63977.0,63976.0,0.33803718]
[1727247106409,0.211149,63977.0,63976.0,0.31360142]
[1727247106589,0.211149,63977.0,63976.0,0.33803714]
[1727247108583,0.211149,63977.0,63976.0,0.31360142]
[1727247108887,0.211149,63977.0,63976.0,0.338037]
[1727247109700,0.211149,63977.0,63976.0,0.25006849]
[1727247109879,0.211149,63977.0,63976.0,0.31359887]
[1727247110207,0.211149,63977.0,63976.0,0.25006849]
[1727247110375,0.211149,63977.0,63976.0,0.23545155]
[1727247112982,0.211149,63977.0,63976.0,0.25988741]
[1727247115593,0.091149,63977.0,63976.0,0.25988741]
[1727247116404,0.091149,63977.0,63976.0,0.23545171]
[1727247116579,0.091149,63977.0,63976.0,0.25988756]
[1727247117583,0.091149,63977.0,63976.0,0.30673835]
[1727247119089,0.091149,63977.0,63976.0,0.25988756]
[1727247119499,0.091149,63977.0,63976.0,0.25988394]
[1727247120394,0.091149,63977.0,63976.0,0.33803394]
[1727247121090,0.091149,63977.0,63976.0,0.25988394]
[1727247121091,0.211149,63977.0,63976.0,0.25988394]
[1727247122204,0.211149,63977.0,63976.0,0.23544809]
[1727247122495,0.211149,63977.0,63976.0,0.25988266]
[1727247124190,0.211149,63977.0,63976.0,0.30673345]
[1727247125513,0.211149,63977.0,63976.0,0.25786459]
[1727247125693,0.211149,63977.0,63976.0,0.30673373]
[1727247126283,0.211149,63977.0,63976.0,0.38488373]
[1727247126586,0.211149,63977.0,63976.0,0.33803294]
[1727247126787,0.211149,63977.0,63976.0,0.3849145]
[1727247127393,0.211149,63977.0,63976.0,0.38491599]
[1727247128291,0.211149,63977.0,63976.0,0.33803443]
[1727247128888,0.211149,63977.0,63976.0,0.38492454]
[1727247129102,0.211149,63977.0,63976.0,0.38492453]
[1727247129311,0.211149,63977.0,63976.0,0.33803442]
[1727247129689,0.091149,63977.0,63976.0,0.33803442]
[1727247129891,0.091149,63977.0,63976.0,0.33803499]
[1727247132223,0.1688237,63977.0,63976.0,0.38493179]
[1727247135206,0.091149,63977.0,63976.0,0.33803499]
[1727247139336,0.1688237,63977.0,63976.0,0.31359985]
[1727247139500,0.1688237,63977.0,63976.0,0.33803499]
[1727247140107,0.091149,63977.0,63976.0,0.33803499]
[1727247141005,0.091149,63977.0,63976.0,0.37713071]
[1727247142012,0.091149,63977.0,63976.0,0.33803499]
[1727247142340,0.091149,63977.0,63976.0,0.25006849]
[1727247142500,0.091149,63977.0,63976.0,0.33803399]
[1727247142812,0.091149,63977.0,63976.0,0.44066041]
[1727247143613,0.1688237,63977.0,63976.0,0.44066041]
[1727247144003,0.091149,63977.0,63976.0,0.44066041]
[1727247144514,0.091149,63977.0,63976.0,0.31359913]
[1727247145398,0.2888237,63977.0,63976.0,0.37712976]
[1727247145711,0.211149,63977.0,63976.0,0.37712976]
[1727247146097,0.091149,63977.0,63976.0,0.50316301]
[1727247146303,0.091149,63977.0,63976.0,0.43963237]
[1727247146712,0.211149,63977.0,63976.0,0.43963237]
[1727247147112,0.091149,63977.0,63976.0,0.43963237]
[1727247147813,0.013,63977.0,63976.0,0.43963237]
[1727247150155,0.013,63977.0,63976.0,0.3125711]
[1727247150304,0.013,63977.0,63976.0,0.37610163]
[1727247150527,0.013,63977.0,63976.0,0.3125711]
[1727247150816,0.013,63977.0,63976.0,0.37712955]
[1727247151802,0.0906747,63977.0,63976.0,0.37712955]
[1727247152013,0.013,63977.0,63976.0,0.37712955]
[1727247152524,0.0906747,63977.0,63976.0,0.37712955]
[1727247153515,0.0906747,63977.0,63976.0,0.31359902]
[1727247153716,0.0906747,63977.0,63976.0,0.49712926]
[1727247155809,0.013,63977.0,63976.0,0.37712985]
[1727247156010,0.0906747,63977.0,63976.0,0.49712985]
[1727247156213,0.013,63977.0,63976.0,0.49712985]
[1727247156615,0.013,63977.0,63976.0,0.55963246]
[1727247156844,0.013,63977.0,63976.0,0.49610134]
[1727247157021,0.013,63977.0,63976.0,0.55963042]
[1727247158413,0.091149,63977.0,63976.0,0.55963042]
[1727247159414,0.211149,63977.0,63976.0,0.37712781]
[1727247159716,0.211149,63977.0,63976.0,0.43963042]
[1727247160108,0.211149,63977.0,63976.0,0.55963042]
[1727247160345,0.211149,63977.0,63976.0,0.49610134]
[1727247160519,0.211149,63977.0,63976.0,0.55962946]
[1727247161022,0.211149,63977.0,63976.0,0.53519513]
[1727247161219,0.211149,63977.0,63976.0,0.55962942]
[1727247162825,0.211149,63977.0,63976.0,0.43962942]
[1727247163841,0.211149,63977.0,63976.0,0.35166598]
[1727247164021,0.211149,63977.0,63976.0,0.43962946]
[1727247167323,0.211149,63977.0,63976.0,0.37712685]
[1727247170217,0.211149,63977.0,63976.0,0.31359767]
[1727247170423,0.211149,63977.0,63976.0,0.37712685]
[1727247170729,0.211149,63977.0,63976.0,0.31359767]
[1727247171025,0.211149,63977.0,63976.0,0.37712685]
[1727247171413,0.211149,63977.0,63976.0,0.39178743]
[1727247171712,0.211149,63977.0,63976.0,0.37712685]
[1727247171919,0.211149,63977.0,63976.0,0.43962946]
[1727247172426,0.2888237,63977.0,63976.0,0.33803197]
[1727247172722,0.16892785,63977.0,63976.0,0.49712741]
[1727247172909,0.091149,63977.0,63976.0,0.49712741]
[1727247175218,0.16892785,63977.0,63976.0,0.49712741]
[1727247177355,0.16892785,63977.0,63976.0,0.25006849]
[1727247177524,0.16892785,63977.0,63976.0,0.31359767]
[1727247177827,0.16892785,63977.0,63976.0,0.37712685]
[1727247180537,0.1689314,63977.0,63976.0,0.29897685]
[1727247180720,0.1689314,63977.0,63976.0,0.29897821]
[1727247180923,0.16893147,63977.0,63976.0,0.25988331]
[1727247181145,0.091149,63977.0,63976.0,0.25988398]
[1727247181331,0.091149,63977.0,63976.0,0.25988452]
[1727247181527,0.1689313,63977.0,63976.0,0.29898036]
[1727247181723,0.16893241,63977.0,63976.0,0.2989802]
[1727247181937,0.16893112,63977.0,63976.0,0.25988452]
[1727247182135,0.16893112,63977.0,63976.0,0.29897973]
[1727247182835,0.091149,63977.0,63976.0,0.29897973]
[1727247184127,0.16893112,63977.0,63976.0,0.29897973]
[1727247184727,0.091149,63977.0,63976.0,0.36148234]
[1727247184928,0.16893112,63977.0,63976.0,0.29897973]
[1727247185139,0.091149,63977.0,63976.0,0.29897973]
[1727247185435,0.091149,63977.0,63976.0,0.29898016]
[1727247185436,0.16893112,63977.0,63976.0,0.29898016]
[1727247185833,0.091149,63977.0,63976.0,0.29898016]
[1727247186030,0.091149,63977.0,63976.0,0.25988452]
[1727247186246,0.16889092,63977.0,63976.0,0.25988452]
[1727247186735,0.16889092,63977.0,63976.0,0.37988452]
[1727247187733,0.16889092,63977.0,63976.0,0.41898054]
[1727247188130,0.16889092,63977.0,63976.0,0.49713054]
[1727247188330,0.16889092,63977.0,63976.0,0.45803452]
[1727247189141,0.16889092,63977.0,63976.0,0.49713054]
[1727247189545,0.16889092,63977.0,63976.0,0.37006849]
[1727247189734,0.16889092,63977.0,63976.0,0.49713055]
[1727247190054,0.16889092,63977.0,63976.0,0.49713053]
[1727247192743,0.16889092,63977.0,63976.0,0.49713055]
[1727247192962,0.28889092,63977.0,63976.0,0.29191849]
[1727247193154,0.28889092,63977.0,63976.0,0.23544954]
[1727247193335,0.28889092,63977.0,63976.0,0.29898059]
[1727247193735,0.28889092,63977.0,63976.0,0.25988456]
[1727247194744,0.28889092,63977.0,63976.0,0.29898058]
[1727247194945,0.28889092,63977.0,63976.0,0.25988456]
[1727247195341,0.28889092,63977.0,63976.0,0.30678791]
[1727247196451,0.28889092,63977.0,63976.0,0.28235287]
[1727247196640,0.28889092,63977.0,63976.0,0.30678788]
[1727247196848,0.23648619,63977.0,63976.0,0.30678788]
[1727247197251,0.23648619,63977.0,63976.0,0.25988453]
[1727247198743,0.59728619,63977.0,63976.0,0.25988453]
[1727247199249,0.571949,63977.0,63976.0,0.25988453]
[1727247199442,0.571949,63977.0,63976.0,0.30678523]
[1727247199757,0.571949,63977.0,63976.0,0.30678789]
[1727247200162,0.649651,63977.0,63976.0,0.25988719]
[1727247201546,0.288851,63977.0,63976.0,0.25988719]
[1727247202246,0.168851,63977.0,63976.0,0.25988719]
[1727247202552,0.288851,63977.0,63976.0,0.25988719]
[1727247203849,0.211149,63977.0,63976.0,0.30678419]
[1727247204050,0.211149,63977.0,63976.0,0.25988719]
[1727247205759,0.211149,63977.0,63976.0,0.30678419]
[1727247205760,0.28885196,63977.0,63976.0,0.30678419]
[1727247206166,0.28885196,63977.0,63976.0,0.24325124]
[1727247206354,0.28885196,63977.0,63976.0,0.30678417]
[1727247207356,0.28885196,63977.0,63976.0,0.21881549]
[1727247207744,0.16885196,63977.0,63976.0,0.29696549]
[1727247207950,0.091149,63977.0,63976.0,0.31360142]
[1727247208757,0.091149,63977.0,63976.0,0.31359821]
[1727247208950,0.091149,63977.0,63976.0,0.49712684]
[1727247209151,0.091149,63977.0,63976.0,0.43359712]
[1727247209361,0.091149,63977.0,63976.0,0.46549712]
[1727247209558,0.091149,63977.0,63976.0,0.47549712]
[1727247209757,0.091149,63977.0,63976.0,0.53902573]
[1727247209961,0.091149,63977.0,63976.0,0.60255434]
[1727247212974,0.091149,63977.0,63976.0,0.53902573]
[1727247213147,0.091149,63977.0,63976.0,0.60255434]
[1727247213958,0.091149,63977.0,63976.0,0.53902573]
[1727247214256,0.091149,63977.0,63976.0,0.60255434]
[1727247214452,0.091149,63977.0,63976.0,0.61035207]
[1727247216060,0.091149,63977.0,63976.0,0.57125862]
[1727247216257,0.091149,63977.0,63976.0,0.61035401]
[1727247219570,0.091149,63977.0,63976.0,0.58591934]
[1727247219757,0.091149,63977.0,63976.0,0.61035394]
[1727247219959,0.091149,63977.0,63976.0,0.54682531]
[1727247223566,0.091149,63977.0,63976.0,0.52239071]
[1727247224372,0.091149,63977.0,63976.0,0.54682531]
[1727247225060,0.013,63977.0,63976.0,0.54682531]
[1727247226060,0.013,63977.0,63976.0,0.5859206]
[1727247226863,0.013,63977.0,63976.0,0.52239064]
[1727247227164,0.013,63977.0,63976.0,0.58592048]
[1727247229973,0.013,63977.0,63976.0,0.58592043]
[1727247232374,0.013,63977.0,63976.0,0.49993288]
[1727247232572,0.013,63977.0,63976.0,0.53902831]
[1727247233161,0.013,63977.0,63976.0,0.53902677]
[1727247233567,0.013,63977.0,63976.0,0.53902676]
[1727247235689,0.091149,63977.0,63976.0,0.35549833]
[1727247235877,0.211149,63977.0,63976.0,0.5468332]
[1727247236078,0.211149,63977.0,63976.0,0.5149332]
[1727247236289,0.15833689,63977.0,63976.0,0.5149332]
[1727247236488,0.15833689,63977.0,63976.0,0.51493499]
[1727247236688,0.23648589,63977.0,63976.0,0.51493499]
[1727247237391,0.23648589,63977.0,63976.0,0.39493499]
[1727247238787,0.23648589,63977.0,63976.0,0.34803413]
[1727247239681,0.75833693,63977.0,63970.0,0.04690288]
[1727247239883,0.078165,63964.0,63963.0,0.0036]
[1727247240082,0.078165,63964.0,63955.0,0.3913]
[1727247240083,0.078174,63956.0,63955.0,0.0305]
[1727247240298,0.19779349,63956.0,63951.0,0.0332]
[1727247240498,0.12,63952.0,63951.0,0.0332]
[1727247240786,0.12,63952.0,63951.0,0.07231069]
[1727247241094,0.19779349,63954.0,63951.0,0.2004744]
[1727247241300,0.04658912,63952.0,63951.0,0.2004744]
[1727247241788,0.001,63952.0,63951.0,0.2144744]
[1727247241988,0.04758912,63952.0,63951.0,0.3344744]
[1727247242180,0.001,63952.0,63951.0,0.3344744]
[1727247242386,0.001,63952.0,63951.0,0.2144744]
[1727247242387,0.079179,63952.0,63951.0,0.2144744]
[1727247242613,0.079179,63952.0,63951.0,0.3344744]
[1727247242795,0.079179,63952.0,63951.0,0.2144744]
[1727247243195,0.199179,63952.0,63951.0,0.2144744]
[1727247243396,0.200179,63952.0,63951.0,0.2264744]
[1727247245093,0.080179,63952.0,63951.0,0.2264744]
[1727247245503,0.440979,63952.0,63951.0,0.2264744]
[1727247246596,0.080179,63952.0,63951.0,0.2264744]
[1727247246900,0.440979,63952.0,63951.0,0.2264744]
[1727247247199,0.560979,63952.0,63951.0,0.2264744]
[1727247256000,0.560979,63952.0,63951.0,0.1932744]
[1727247256794,0.639158,63952.0,63951.0,0.1932744]
[1727247258494,0.519158,63952.0,63951.0,0.1932744]
[1727247258691,0.639158,63952.0,63951.0,0.1932744]
[1727247260003,0.278358,63952.0,63951.0,0.1932744]
[1727247260307,0.639158,63952.0,63951.0,0.1932744]
[1727247265200,0.32475828,63952.0,63951.0,0.1932744]
[1727247265403,0.68555828,63952.0,63951.0,0.1932744]
[1727247266011,0.639158,63952.0,63951.0,0.1932744]
[1727247266213,0.278358,63952.0,63951.0,0.1932744]
[1727247266412,0.639158,63952.0,63951.0,0.1932744]
[1727247267206,0.70102504,63952.0,63951.0,0.1932744]
[1727247268307,0.639158,63952.0,63951.0,0.1932744]
[1727247269420,0.66450689,63952.0,63951.0,0.1932744]
[1727247270211,0.66450689,63952.0,63951.0,0.026]
[1727247270417,0.6645083,63952.0,63951.0,0.026]
[1727247271521,1.7336283,63952.0,63951.0,0.026]
[1727247271814,1.82690437,63952.0,63951.0,0.026]
[1727247272715,0.6645083,63952.0,63951.0,0.026]
[1727247273222,0.75778437,63952.0,63951.0,0.026]
[1727247274919,0.6645083,63952.0,63951.0,0.026]
[1727247275621,0.3037083,63952.0,63951.0,0.026]
[1727247275818,0.6645083,63952.0,63951.0,0.026]
[1727247276721,0.3037083,63952.0,63951.0,0.026]
[1727247276916,0.6645083,63952.0,63951.0,0.026]
[1727247279625,0.66450768,63952.0,63951.0,0.026]
[1727247282930,0.30370768,63952.0,63951.0,0.026]
[1727247283229,0.66450768,63952.0,63951.0,0.026]
[1727247284328,0.30370778,63952.0,63951.0,0.026]
[1727247284522,0.66450778,63952.0,63951.0,0.026]
[1727247284718,1.19032003,63952.0,63951.0,0.026]
[1727247285035,1.79032003,63952.0,63951.0,0.026]
[1727247286335,0.078191,63942.0,63941.0,0.0036]
[1727247286648,0.078191,63942.0,63934.0,0.064]
[1727247286649,0.0782,63935.0,63934.0,0.064]
[1727247286819,0.66614978,63935.0,63934.0,0.064]
[1727247287022,0.64020338,63935.0,63934.0,0.064]
[1727247287222,1.22496564,63935.0,63934.0,0.064]
[1727247287427,1.73178978,63935.0,63934.0,0.0326]
[1727247287628,0.07821,63927.0,63926.0,0.0314]
[1727247287822,0.07821,63927.0,63926.0,0.0619]
[1727247287823,0.43901,63927.0,63926.0,0.0619]
[1727247288026,0.51665074,63927.0,63926.0,0.0619]
[1727247288224,0.43901,63927.0,63926.0,0.0619]
[1727247289435,0.45374504,63927.0,63926.0,0.0619]
[1727247289734,0.45474504,63927.0,63926.0,0.0619]
[1727247290030,0.45574504,63927.0,63926.0,0.0629]
[1727247290837,0.51769061,63927.0,63926.0,0.0629]
[1727247291341,0.45574504,63927.0,63926.0,0.0629]
[1727247291937,0.50218584,63927.0,63926.0,0.1829]
[1727247292139,0.45574504,63927.0,63926.0,0.1829]
[1727247292438,0.45574504,63927.0,63926.0,0.0629]
[1727247292736,0.57574504,63927.0,63926.0,0.0629]
[1727247293924,0.45574504,63927.0,63926.0,0.0629]
[1727247294124,0.57574504,63927.0,63926.0,0.0629]
[1727247308135,0.62218584,63927.0,63926.0,0.0629]
[1727247310141,0.57574504,63927.0,63926.0,0.0629]
[1727247310851,0.21494504,63927.0,63926.0,0.0629]
[1727247311031,0.57574504,63927.0,63926.0,0.0629]
[1727247311530,0.63769061,63927.0,63926.0,0.0629]
[1727247311735,0.57574504,63927.0,63926.0,0.0629]
[1727247312041,0.63769061,63927.0,63926.0,0.0629]
[1727247313141,0.57574504,63927.0,63926.0,0.0629]
[1727247314243,0.65338578,63927.0,63926.0,0.0629]
[1727247315139,0.57574504,63927.0,63926.0,0.0629]
[1727247315340,0.60110478,63927.0,63926.0,0.0629]
[1727247320843,0.24030478,63927.0,63926.0,0.0629]